bitfinex-derivatives/quotes_BTCF0:USTF0_20250509
["timestamp","ask_amount","ask_price","bid_price","bid_amount"]
[1746805847229,0.01328,102950.0,102940.0,1.11088292]
[1746805847533,0.2075393,102950.0,102940.0,1.26720292]
[1746805849232,0.2055393,102950.0,102940.0,1.28303241]
[1746805849830,0.2015393,102950.0,102940.0,1.28203241]
[1746805850031,0.2015393,102950.0,102940.0,1.28303241]
[1746805850331,0.2015393,102950.0,102940.0,1.09573412]
[1746805850533,0.2015393,102950.0,102940.0,1.12671241]
[1746805850735,0.2015393,102950.0,102940.0,1.25205412]
[1746805852231,0.2015393,102950.0,102940.0,1.23522463]
[1746805855334,0.2015393,102950.0,102940.0,1.07890463]
[1746805855631,0.2015393,102950.0,102940.0,1.23518463]
[1746805855820,0.2363393,102950.0,102940.0,1.23518463]
[1746805856131,0.2363393,102950.0,102940.0,1.07518463]
[1746805858040,0.2363393,102950.0,102940.0,0.88090643]
[1746805858227,0.2703393,102950.0,102940.0,0.88090643]
[1746805859038,0.45763759,102950.0,102940.0,0.36382643]
[1746805859230,0.45763759,102950.0,102940.0,0.47669924]
[1746805859430,0.45763759,102950.0,102940.0,0.52006643]
[1746805859633,0.45763759,102950.0,102940.0,0.36382643]
[1746805859829,0.3057393,102950.0,102940.0,0.36382643]
[1746805860338,0.6665393,102950.0,102940.0,0.36382643]
[1746805860637,0.6685393,102950.0,102940.0,0.36382643]
[1746805861236,0.6695393,102950.0,102940.0,0.36282643]
[1746805861429,0.6695393,102950.0,102940.0,0.26568719]
[1746805861831,0.85683759,102950.0,102940.0,0.10936719]
[1746805862030,0.85683759,102950.0,102940.0,0.22232]
[1746805862333,0.85683759,102950.0,102940.0,0.26568719]
[1746805862941,0.6695393,102950.0,102940.0,0.26568719]
[1746805863437,0.6695393,102950.0,102940.0,0.45996539]
[1746805863746,0.2747393,102950.0,102940.0,0.55710463]
[1746805864039,0.2747393,102950.0,102940.0,0.36282643]
[1746805864241,0.2393393,102950.0,102940.0,0.55710463]
[1746805864739,0.2393393,102950.0,102940.0,0.36282643]
[1746805864948,0.49543759,102950.0,102940.0,0.36282643]
[1746805865437,0.3081393,102950.0,102940.0,0.55710463]
[1746805865635,0.2393393,102950.0,102940.0,0.91790463]
[1746805866344,0.31311738,102950.0,102940.0,0.91790463]
[1746805866538,0.27831738,102950.0,102940.0,0.91790463]
[1746805867145,0.27831738,102950.0,102940.0,1.07790463]
[1746805867343,0.31151738,102950.0,102940.0,1.09261268]
[1746805868338,0.27831738,102950.0,102940.0,1.27991097]
[1746805869745,0.2045393,102950.0,102940.0,1.27991097]
[1746805870840,0.2045393,102950.0,102940.0,1.09263604]
[1746805871047,0.2380393,102950.0,102940.0,1.09263604]
[1746805871543,0.2704393,102950.0,102940.0,0.89835784]
[1746805871743,0.45773759,102950.0,102940.0,0.9954968]
[1746805872048,0.2380393,102950.0,102940.0,1.09263604]
[1746805873147,0.2716393,102950.0,102940.0,0.93263604]
[1746805873342,0.2716393,102950.0,102940.0,0.57183604]
[1746805873743,0.2716393,102950.0,102940.0,0.93263604]
[1746805874049,0.45893759,102950.0,102940.0,0.73835784]
[1746805874345,0.3048393,102950.0,102940.0,0.37757443]
[1746805874849,0.3048393,102950.0,102940.0,0.57185263]
[1746805875549,0.3048393,102950.0,102940.0,0.37757443]
[1746805875846,0.3048393,102950.0,102940.0,0.57185263]
[1746805876046,0.3048393,102950.0,102940.0,0.37757443]
[1746805876542,0.49213759,102950.0,102940.0,0.015748]
[1746805876948,0.85293759,102950.0,102940.0,0.015748]
[1746805877149,0.89941738,102950.0,102940.0,0.015748]
[1746805877350,1.08671567,102950.0,102940.0,0.015748]
[1746805877848,0.89941738,102950.0,102940.0,0.015748]
[1746805878048,0.89941738,102950.0,102940.0,0.2100262]
[1746805878242,0.73941738,102950.0,102940.0,0.083748]
[1746805879350,0.73941738,102950.0,102940.0,0.069]
[1746805880247,0.92671567,102950.0,102940.0,0.001]
[1746805880447,0.73941738,102950.0,102940.0,0.001]
[1746805880647,0.92671567,102950.0,102940.0,0.001]
[1746805881261,0.95132269,102950.0,102940.0,0.001]
[1746805882262,0.7640244,102950.0,102940.0,0.04436719]
[1746805882462,0.7640244,102950.0,102940.0,0.30504539]
[1746805882767,0.4032244,102950.0,102940.0,0.76298463]
[1746805883064,0.3029244,102950.0,102940.0,0.95028292]
[1746805883250,0.3029244,102950.0,102940.0,1.11028292]
[1746805883657,0.3384244,102950.0,102940.0,0.92298463]
[1746805886861,0.2400393,102950.0,102940.0,0.92298463]
[1746805888961,0.2400393,102950.0,102940.0,0.56218463]
[1746805890064,0.2400393,102950.0,102940.0,0.40218463]
[1746805891166,0.2747393,102950.0,102940.0,0.11076719]
[1746805891559,0.3087393,102950.0,102940.0,0.30504539]
[1746805891960,0.3087393,102950.0,102940.0,0.11076719]
[1746805892265,0.3087393,102950.0,102940.0,0.30504539]
[1746805892868,0.3087393,102950.0,102940.0,0.40218463]
[1746805894261,0.2400393,102950.0,102940.0,0.35881744]
[1746805894467,0.2400393,102950.0,102940.0,0.58948292]
[1746805894866,0.2400393,102950.0,102940.0,0.20790643]
[1746805895166,0.2400393,102950.0,102940.0,0.40218463]
[1746805895167,0.2731393,102950.0,102940.0,0.40218463]
[1746805895367,0.3058393,102950.0,102940.0,0.40218463]
[1746805895567,0.3058393,102950.0,102940.0,0.41716852]
[1746805899075,0.2727393,102950.0,102940.0,0.41716852]
[1746805899274,0.2400393,102950.0,102940.0,0.41716852]
[1746805899670,0.2400393,102950.0,102940.0,0.60446681]
[1746805900178,0.2400393,102950.0,102940.0,0.76446681]
[1746805900373,0.2400393,102950.0,102940.0,0.93798678]
[1746805900971,0.2752393,102950.0,102940.0,0.93798678]
[1746805901171,0.2400393,102950.0,102940.0,0.93798678]
[1746805901373,0.78813759,102950.0,102940.0,0.17600215]
[1746805901675,0.92047759,102950.0,102940.0,0.17600215]
[1746805902277,1.08047759,102950.0,102940.0,0.01600215]
[1746805902773,0.8931793,102950.0,102940.0,0.01600215]
[1746805903076,0.7960393,102950.0,102940.0,0.01600215]
[1746805903277,0.82333759,102950.0,102940.0,0.01600215]
[1746805903469,0.82333759,102950.0,102940.0,0.001]
[1746805903663,0.83792413,102950.0,102940.0,0.001]
[1746805904769,1.09877705,102950.0,102940.0,0.001]
[1746805905378,0.89689222,102950.0,102940.0,0.11176719]
[1746805906171,0.89689222,102950.0,102940.0,0.20890643]
[1746805906475,0.50089222,102950.0,102940.0,0.91994463]
[1746805907277,0.50089222,102950.0,102940.0,1.07994463]
[1746805907681,0.50089222,102950.0,102940.0,1.09480402]
[1746805908068,0.50089222,102950.0,102940.0,0.90052582]
[1746805908275,0.50089222,102950.0,102940.0,1.09480402]
[1746805908671,0.31373786,102950.0,102940.0,1.09480402]
[1746805909372,0.34793786,102950.0,102940.0,0.38379015]
[1746805909579,0.53523615,102950.0,102940.0,0.53975015]
[1746805909778,0.34793786,102950.0,102940.0,0.44261091]
[1746805910283,0.34793786,102950.0,102940.0,0.28261091]
[1746805910884,0.53523615,102950.0,102940.0,0.28261091]
[1746805911979,0.63362125,102950.0,102940.0,0.28261091]
[1746805914576,0.63362125,102950.0,102940.0,0.2826166]
[1746805915281,0.63362125,102950.0,102940.0,0.57403404]
[1746805915586,0.41212296,102950.0,102940.0,0.37975584]
[1746805916386,0.44672296,102950.0,102940.0,0.37975584]
[1746805916585,0.44672296,102950.0,102940.0,0.57403404]
[1746805917588,0.44672296,102950.0,102940.0,0.37975584]
[1746805917883,0.63402125,102950.0,102940.0,0.37975568]
[1746805918485,0.34833786,102950.0,102940.0,0.37975568]
[1746805921198,0.31373786,102950.0,102940.0,0.57403388]
[1746805921386,0.31373786,102950.0,102940.0,0.57390201]
[1746805922182,0.31373786,102950.0,102940.0,0.93470201]
[1746805922600,0.08397856,102950.0,102940.0,1.2778803]
[1746805923085,0.27823786,102950.0,102940.0,2.9378803]
[1746805923791,0.08397856,102950.0,102940.0,2.9378803]
[1746805923980,0.27723786,102950.0,102940.0,2.9388803]
[1746805924184,0.27623786,102950.0,102940.0,2.75158201]
[1746805924380,0.27623786,102950.0,102940.0,2.9388803]
[1746805924991,0.27623786,102950.0,102940.0,1.4388803]
[1746805925891,0.27623786,102950.0,102940.0,1.25158201]
[1746805926094,0.2365393,102950.0,102940.0,1.25158201]
[1746805926295,0.2365393,102950.0,102940.0,1.4388803]
[1746805926492,0.2365393,102950.0,102940.0,1.4388748]
[1746805926699,0.2025393,102950.0,102940.0,1.4388748]
[1746805927196,0.2025393,102950.0,102940.0,1.25157651]
[1746805927587,0.2365393,102950.0,102940.0,1.25157651]
[1746805928087,0.2025393,102950.0,102940.0,1.09157593]
[1746805928293,0.2354393,102950.0,102940.0,1.09157593]
[1746805928492,0.2354393,102950.0,102940.0,0.74633773]
[1746805928682,0.42273759,102950.0,102940.0,0.38553773]
[1746805928883,0.45503759,102950.0,102940.0,0.38553773]
[1746805929595,0.45503759,102950.0,102940.0,0.74633773]
[1746805929790,0.2677393,102950.0,102940.0,0.74633852]
[1746805930191,0.2677393,102950.0,102940.0,0.94061672]
[1746805930497,0.2677393,102950.0,102940.0,0.94061708]
[1746805930693,0.2677393,102950.0,102940.0,0.74633888]
[1746805930885,0.45503759,102950.0,102940.0,0.74633888]
[1746805931287,0.2677393,102950.0,102940.0,0.38553888]
[1746805931496,0.2677393,102950.0,102940.0,0.57981708]
[1746805931697,0.2677393,102950.0,102940.0,0.38553888]
[1746805932000,0.2677393,102950.0,102940.0,0.57981708]
[1746805932188,0.2677393,102950.0,102940.0,0.38553888]
[1746805932594,0.2677393,102950.0,102940.0,0.57981708]
[1746805932902,0.2677393,102950.0,102940.0,0.38554146]
[1746805933399,0.2677393,102950.0,102940.0,0.38554214]
[1746805933802,0.2677393,102950.0,102940.0,0.57982034]
[1746805935098,0.2354393,102950.0,102940.0,1.12791863]
[1746805935299,0.2354393,102950.0,102940.0,0.94062034]
[1746805935488,0.2354393,102950.0,102940.0,1.12791863]
[1746805936494,0.2354393,102950.0,102940.0,0.94062034]
[1746805936691,0.00828,102950.0,102940.0,1.12791863]
[1746805937099,0.2025393,102950.0,102940.0,1.28791863]
[1746805937597,0.2025393,102950.0,102940.0,1.10062034]
[1746805937797,0.2375393,102950.0,102940.0,0.90634214]
[1746805937999,0.49263759,102950.0,102940.0,1.10062034]
[1746805938203,0.3053393,102950.0,102940.0,0.94062034]
[1746805938695,0.3053393,102950.0,102940.0,0.94058248]
[1746805938896,0.2980593,102950.0,102940.0,0.94058248]
[1746805939698,0.2980593,102950.0,102940.0,0.92586463]
[1746805941712,0.2970593,102950.0,102940.0,0.92486463]
[1746805942010,0.2990593,102950.0,102940.0,0.92486463]
[1746805942902,0.48535759,102950.0,102940.0,0.92486463]
[1746805943105,0.2980593,102950.0,102940.0,0.92586463]
[1746805943304,0.2980593,102950.0,102940.0,0.88249744]
[1746805943605,0.2980593,102950.0,102940.0,0.92586463]
[1746805944807,0.44975759,102950.0,102940.0,0.32741924]
[1746805945003,0.48245759,102950.0,102940.0,0.32741924]
[1746805945204,0.48245759,102950.0,102940.0,0.52169744]
[1746805945404,0.48245759,102950.0,102940.0,0.32741924]
[1746805945811,0.2951593,102950.0,102940.0,0.32741924]
[1746805946007,0.48245759,102950.0,102940.0,0.32741924]
[1746805946203,0.48245759,102950.0,102940.0,0.19688]
[1746805946405,0.2951593,102950.0,102940.0,0.3911582]
[1746805946706,0.2951593,102950.0,102940.0,0.4267582]
[1746805947504,0.2951593,102950.0,102940.0,0.47012539]
[1746805947700,0.1009,102950.0,102940.0,0.56726463]
[1746805947901,0.2951593,102950.0,102940.0,0.56726463]
[1746805948313,0.36885786,102950.0,102940.0,0.56726463]
[1746805951214,0.33615786,102950.0,102940.0,1.08806463]
[1746805952708,0.30395786,102950.0,102940.0,0.72726463]
[1746805952914,0.30395786,102950.0,102940.0,1.08806463]
[1746805953610,0.33715786,102950.0,102940.0,1.08806463]
[1746805956615,0.30395786,102950.0,102940.0,1.27536292]
[1746805957018,0.30395786,102950.0,102940.0,1.08806463]
[1746805959328,0.30395786,102950.0,102940.0,1.27536292]
[1746805959530,0.30395786,102950.0,102940.0,1.08806463]
[1746805960728,0.30395786,102950.0,102940.0,1.27536292]
[1746805961032,0.49125615,102950.0,102940.0,1.08806463]
[1746805961323,0.30395786,102950.0,102940.0,1.08806463]
[1746805962731,0.30395786,102950.0,102940.0,1.10296821]
[1746805964022,0.33925786,102950.0,102940.0,1.10296821]
[1746805965130,0.33925786,102950.0,102940.0,0.94296821]
[1746805965335,0.52655615,102950.0,102940.0,0.89960102]
[1746805965823,0.52655615,102950.0,102940.0,0.89961757]
[1746805966024,0.33925786,102950.0,102940.0,0.89961757]
[1746805967528,0.33925786,102950.0,102940.0,0.88469744]
[1746805967834,0.33925786,102950.0,102940.0,0.89961914]
[1746805968132,0.33925786,102950.0,102940.0,1.05961914]
[1746805968527,0.07469856,102950.0,102940.0,1.24691743]
[1746805968734,0.07469856,102950.0,102940.0,1.29028462]
[1746805968935,0.07469856,102950.0,102940.0,1.45856462]
[1746805969128,0.26895786,102950.0,102940.0,1.45856462]
[1746805970834,0.1952593,102950.0,102940.0,1.45856462]
[1746805971225,0.1952593,102950.0,102940.0,1.27126633]
[1746805971421,0.2302593,102950.0,102940.0,1.27126633]
[1746805972325,0.2302593,102950.0,102940.0,1.45856462]
[1746805972730,0.2302593,102950.0,102940.0,1.27126358]
[1746805973334,0.2302593,102950.0,102940.0,1.07698538]
[1746805974328,0.41755759,102950.0,102940.0,0.86533819]
[1746805974534,0.48465759,102950.0,102940.0,0.5045377]
[1746805974835,0.48465759,102950.0,102940.0,0.33779846]
[1746805975229,0.48465759,102950.0,102940.0,0.17779846]
[1746805975230,0.64465759,102950.0,102940.0,0.17779846]
[1746805975832,0.64465759,102950.0,102940.0,0.16288]
[1746805976335,0.48465759,102950.0,102940.0,0.16288]
[1746805976934,0.48465759,102950.0,102940.0,0.19678]
[1746805977435,0.48465759,102950.0,102940.0,0.16288]
[1746805977634,0.2973593,102950.0,102940.0,0.16288]
[1746805978032,0.6581593,102950.0,102940.0,0.16288]
[1746805978233,0.84545759,102950.0,102940.0,0.16288]
[1746805978428,0.6724405,102950.0,102940.0,0.16288]
[1746805978628,0.85973879,102950.0,102940.0,0.16288]
[1746805979533,0.85973879,102950.0,102940.0,0.002]
[1746805979742,0.85973879,102950.0,102940.0,1e-07]
[1746805979743,1.37331879,102950.0,102940.0,1e-07]
[1746805979933,0.194297,102930.0,102920.0,0.14794411]
[1746805980241,0.1943159,102920.0,102910.0,0.3487155]
[1746805980438,0.23934925,102920.0,102910.0,0.42728269]
[1746805980642,0.23934925,102920.0,102910.0,0.52442193]
[1746805980942,0.45944754,102920.0,102910.0,0.52442193]
[1746805981342,0.27214925,102920.0,102910.0,0.52442193]
[1746805982035,0.27214925,102920.0,102910.0,0.48922193]
[1746805982437,0.27314925,102920.0,102910.0,0.49322193]
[1746805982834,0.27414925,102920.0,102910.0,0.49922193]
[1746805983240,0.24134925,102920.0,102910.0,0.88803673]
[1746805983436,0.24134925,102920.0,102910.0,0.86002193]
[1746805983733,0.24134925,102920.0,102910.0,0.35072643]
[1746805984144,0.24134925,102920.0,102910.0,0.54506123]
[1746805985143,0.24134925,102920.0,102910.0,0.35072643]
[1746805986043,0.27564925,102920.0,102910.0,0.35072643]
[1746805986840,0.27364925,102920.0,102910.0,0.34072643]
[1746805987042,0.27464925,102920.0,102910.0,0.34672643]
[1746805988344,0.27464925,102920.0,102910.0,0.34372643]
[1746805989846,0.82274754,102920.0,102910.0,0.003]
[1746805990239,0.79544925,102920.0,102910.0,0.003]
[1746805990440,0.79544925,102920.0,102910.0,0.0376]
[1746805990646,0.43464925,102920.0,102910.0,0.0376]
[1746805991146,0.27464925,102920.0,102910.0,0.0718]
[1746805991342,0.24034925,102920.0,102910.0,0.0718]
[1746805991845,0.24034925,102920.0,102910.0,0.11516719]
[1746805992450,0.42764754,102920.0,102910.0,0.11516719]
[1746805992646,0.24034925,102920.0,102910.0,0.11516719]
[1746805992852,0.24034925,102920.0,102910.0,0.0718]
[1746805993049,0.24034925,102920.0,102910.0,0.11516719]
[1746805993254,0.24034925,102920.0,102910.0,0.30950199]
[1746805993643,0.24034925,102920.0,102910.0,1.12112784]
[1746805994051,0.1953159,102920.0,102910.0,1.12112784]
[1746805994751,0.001,102920.0,102910.0,1.12112784]
[1746805994958,0.1953159,102920.0,102910.0,1.12112784]
[1746805995251,0.1953159,102920.0,102910.0,1.28112784]
[1746805995855,0.1953159,102920.0,102910.0,1.44660784]
[1746805996858,0.1953159,102920.0,102910.0,1.48923499]
[1746805997159,0.1953159,102920.0,102910.0,1.47960784]
[1746805999664,0.1953159,102920.0,102910.0,0.93249475]
[1746805999981,0.77661419,102920.0,102910.0,0.53749475]
[1746806000156,0.84171419,102920.0,102910.0,0.37749475]
[1746806000459,0.6544159,102920.0,102910.0,0.37749475]
[1746806000655,0.6544159,102920.0,102910.0,0.57182955]
[1746806001060,0.6544159,102920.0,102910.0,0.37749475]
[1746806002268,0.2612159,102920.0,102910.0,0.57182955]
[1746806002764,0.2285159,102920.0,102910.0,1.07656065]
[1746806003068,0.2285159,102920.0,102910.0,1.11992784]
[1746806003567,0.001,102920.0,102910.0,1.11992784]
[1746806003759,0.1953159,102920.0,102910.0,1.11992784]
[1746806004060,0.001,102920.0,102910.0,1.21992784]
[1746806004365,0.1953159,102920.0,102910.0,1.37992784]
[1746806004969,0.1953159,102920.0,102910.0,1.39466419]
[1746806005159,0.001,102920.0,102910.0,1.39466419]
[1746806005360,0.1953159,102920.0,102910.0,1.29466419]
[1746806005560,0.1953159,102920.0,102910.0,1.39466419]
[1746806005766,0.1953159,102920.0,102910.0,1.1073659]
[1746806005963,0.1953159,102920.0,102910.0,1.29466419]
[1746806006270,0.1953159,102920.0,102910.0,2.45814419]
[1746806006469,0.1953159,102920.0,102910.0,2.55814419]
[1746806007070,0.1953159,102920.0,102910.0,2.5581633]
[1746806007366,0.1953159,102920.0,102910.0,2.54340784]
[1746806007570,0.1953159,102920.0,102910.0,2.55816516]
[1746806007770,0.1953159,102920.0,102910.0,2.55816406]
[1746806008275,0.1953159,102920.0,102910.0,2.45816406]
[1746806010169,0.1953159,102920.0,102910.0,2.55816406]
[1746806010369,0.1953159,102920.0,102910.0,2.45816406]
[1746806011367,0.001,102920.0,102910.0,2.55816406]
[1746806011573,0.001,102920.0,102910.0,2.65533206]
[1746806012274,0.1953159,102920.0,102910.0,2.65533118]
[1746806012472,0.001,102920.0,102910.0,2.65533118]
[1746806013274,0.1953159,102920.0,102910.0,2.65533118]
[1746806013675,0.1953159,102920.0,102910.0,2.55815998]
[1746806013864,0.001,102920.0,102910.0,2.55815998]
[1746806014266,0.1953159,102920.0,102910.0,2.55815998]
[1746806014474,0.001,102920.0,102910.0,2.55815998]
[1746806016077,0.1953159,102920.0,102910.0,2.55815998]
[1746806016565,0.001,102920.0,102910.0,2.55815998]
[1746806017566,0.001,102920.0,102910.0,2.55815794]
[1746806018976,0.001,102920.0,102910.0,2.65532594]
[1746806019169,0.001,102920.0,102910.0,2.65533753]
[1746806020975,0.001,102920.0,102910.0,2.65533982]
[1746806024277,0.001,102920.0,102910.0,2.65535128]
[1746806024575,0.07377029,102950.0,102940.0,0.1942782]
[1746806024879,0.10667029,102950.0,102940.0,1.48471912]
[1746806025173,0.30092959,102950.0,102940.0,1.83988668]
[1746806025874,0.33582959,102950.0,102940.0,1.82611124]
[1746806026064,0.33582959,102950.0,102940.0,1.68087881]
[1746806026675,0.33582959,102950.0,102940.0,1.68187881]
[1746806028072,0.14157029,102950.0,102940.0,1.68187253]
[1746806028281,0.30192959,102950.0,102940.0,1.68187253]
[1746806028974,0.30192959,102950.0,102940.0,1.6913568]
[1746806028975,0.2281593,102950.0,102940.0,1.6913568]
[1746806029273,0.0339,102950.0,102940.0,1.6913568]
[1746806030377,0.2281593,102950.0,102940.0,1.6913568]
[1746806030974,0.0339,102950.0,102940.0,1.69135234]
[1746806031172,0.001,102950.0,102940.0,1.79135234]
[1746806031571,0.001,102950.0,102940.0,1.60405405]
[1746806031771,0.001,102950.0,102940.0,1.79135234]
[1746806032281,0.001,102950.0,102940.0,1.95135234]
[1746806033379,0.001,102950.0,102940.0,1.76405405]
[1746806033579,0.0329,102950.0,102940.0,1.95135234]
[1746806034373,0.0329,102950.0,102940.0,1.95135286]
[1746806036078,0.0329,102950.0,102940.0,1.95135129]
[1746806036376,0.004,102960.0,102950.0,0.1942593]
[1746806036689,0.0375,102960.0,102950.0,2.31475885]
[1746806036979,0.0375,102960.0,102950.0,2.2245998]
[1746806037572,0.0375,102960.0,102950.0,2.2255998]
[1746806037775,0.0375,102960.0,102950.0,2.22659272]
[1746806038280,0.0385,102960.0,102950.0,2.22859272]
[1746806039585,0.0385,102960.0,102950.0,2.22959049]
[1746806041284,0.0385,102960.0,102950.0,2.22958834]
[1746806041682,0.005,102960.0,102950.0,2.22958834]
[1746806041984,0.0372,102960.0,102950.0,2.22958834]
[1746806042776,0.2314404,102960.0,102950.0,1.89892286]
[1746806042979,0.2634404,102960.0,102950.0,2.00310286]
[1746806043173,0.4234404,102960.0,102950.0,2.17162286]
[1746806043378,0.4234404,102960.0,102950.0,2.39052115]
[1746806044184,0.2634404,102960.0,102950.0,2.39052115]
[1746806044377,0.2634404,102960.0,102950.0,2.42352333]
[1746806046176,0.2634404,102960.0,102950.0,2.42352269]
[1746806046381,0.2634404,102960.0,102950.0,2.46688988]
[1746806046576,0.2634404,102960.0,102950.0,2.49928988]
[1746806046980,0.0692,102960.0,102950.0,2.49928988]
[1746806047180,0.2314404,102960.0,102950.0,2.49928988]
[1746806048182,0.0372,102960.0,102950.0,2.49928988]
[1746806048682,0.0372,102960.0,102950.0,2.59928988]
[1746806049480,0.0372,102960.0,102950.0,2.5992963]
[1746806049884,0.0372,102960.0,102950.0,2.59929869]
[1746806050592,0.0372,102960.0,102950.0,2.49929869]
[1746806050888,0.0372,102960.0,102950.0,2.59930141]
[1746806051188,0.0372,102960.0,102950.0,2.59930149]
[1746806052091,0.0372,102960.0,102950.0,2.59930486]
[1746806052392,0.005,102960.0,102950.0,2.78660315]
[1746806052691,0.005,102960.0,102950.0,2.59930486]
[1746806052885,0.0388,102960.0,102950.0,2.59930486]
[1746806053192,0.13579904,102990.0,102950.0,2.59930486]
[1746806053193,0.37856304,102990.0,102980.0,0.1942027]
[1746806053386,0.36908269,102990.0,102980.0,0.8917227]
[1746806053691,0.36908269,102990.0,102980.0,1.0937863]
[1746806053891,0.36908269,102990.0,102980.0,1.19091611]
[1746806054184,0.36908269,102990.0,102980.0,1.20524502]
[1746806054387,0.36908269,102990.0,102980.0,1.20624502]
[1746806054590,0.46688269,102990.0,102980.0,1.08494673]
[1746806055090,0.46688269,102990.0,102980.0,1.08495333]
[1746806055091,0.62688269,102990.0,102980.0,1.08495333]
[1746806055288,0.63088269,102990.0,102980.0,1.27225162]
[1746806055489,0.63088269,102990.0,102980.0,1.08495333]
[1746806055892,0.62688269,102990.0,102980.0,1.08495333]
[1746806056189,0.46688269,102990.0,102980.0,1.07018142]
[1746806057086,0.62688269,102990.0,102980.0,1.07018142]
[1746806060690,0.81418098,102990.0,102980.0,0.64133872]
[1746806060893,1.10121069,102990.0,102980.0,0.11245872]
[1746806061191,1.10121069,102990.0,102980.0,0.001]
[1746806061192,1.38560898,102990.0,102980.0,0.001]
[1746806061892,1.19831069,102990.0,102980.0,0.001]
[1746806062190,1.20431069,102990.0,102980.0,0.002]
[1746806062590,1.20831069,102990.0,102980.0,0.002]
[1746806062791,1.20631069,102990.0,102980.0,0.001]
[1746806063493,1.39360898,102990.0,102980.0,0.001]
[1746806063793,1.20631069,102990.0,102980.0,0.001]
[1746806064893,1.37846608,102990.0,102980.0,0.001]
[1746806065293,1.19116779,102990.0,102980.0,0.001]
[1746806065485,1.56576437,102990.0,102980.0,0.001]
[1746806066590,0.0485523,102980.0,102960.0,0.16684]
[1746806066795,0.62269749,102970.0,102960.0,0.16684]
[1746806066991,0.62269749,102970.0,102960.0,0.26394151]
[1746806067200,0.9561992,102970.0,102960.0,0.16684]
[1746806067506,0.9634792,102970.0,102960.0,0.16684]
[1746806067697,1.15077749,102970.0,102960.0,0.16684]
[1746806068797,0.9634792,102970.0,102960.0,0.16684]
[1746806068991,0.1942404,102960.0,102950.0,0.01612149]
[1746806069196,0.96583869,102960.0,102950.0,0.00145689]
[1746806070696,0.96883869,102960.0,102950.0,0.00245689]
[1746806070993,0.96883869,102960.0,102950.0,0.001]
[1746806071187,0.97083869,102960.0,102950.0,0.001]
[1746806071983,1.14292646,102960.0,102950.0,0.001]
[1746806074796,1.04454136,102960.0,102950.0,0.001]
[1746806075300,1.23183965,102960.0,102950.0,0.001]
[1746806075693,1.04454136,102960.0,102950.0,0.001]
[1746806076586,1.04854136,102960.0,102950.0,0.002]
[1746806077199,1.05154136,102960.0,102950.0,0.002]
[1746806078602,0.86424307,102960.0,102950.0,0.002]
[1746806078797,1.05154136,102960.0,102950.0,0.002]
[1746806079104,1.14992646,102960.0,102950.0,0.002]
[1746806082099,1.24705446,102960.0,102950.0,0.002]
[1746806082299,0.1942593,102950.0,102940.0,0.23158]
[1746806082597,0.64339829,102950.0,102920.0,1.75156276]
[1746806082799,0.95219669,102940.0,102930.0,0.10486719]
[1746806083003,1.01063347,102940.0,102930.0,0.10486719]
[1746806083306,0.98333518,102940.0,102930.0,0.10486719]
[1746806085500,0.98533518,102940.0,102930.0,0.12040578]
[1746806086008,0.98733518,102940.0,102930.0,0.10586719]
[1746806087303,0.98733518,102940.0,102930.0,0.0625]
[1746806087509,1.17463347,102940.0,102930.0,0.10586719]
[1746806087707,0.74448388,102940.0,102910.0,0.00145717]
[1746806087912,0.1943348,102910.0,102900.0,0.00398426]
[1746806088110,0.54163309,102910.0,102900.0,0.08065145]
[1746806088411,0.60373309,102910.0,102900.0,0.08065145]
[1746806089114,0.99523309,102910.0,102900.0,0.07875145]
[1746806089311,0.99523309,102910.0,102900.0,0.03538426]
[1746806089508,0.99523309,102910.0,102900.0,0.08275145]
[1746806089713,0.99623309,102910.0,102900.0,0.08275145]
[1746806090608,0.63543309,102910.0,102900.0,0.08275145]
[1746806090814,0.99623309,102910.0,102900.0,0.11545145]
[1746806091016,0.99623309,102910.0,102900.0,0.14825145]
[1746806091313,0.83623309,102910.0,102900.0,0.14825145]
[1746806091514,0.83623309,102910.0,102900.0,0.15225145]
[1746806092112,0.84351309,102910.0,102900.0,0.15225145]
[1746806092512,0.84251309,102910.0,102900.0,0.14825145]
[1746806092713,0.84351309,102910.0,102900.0,0.14825145]
[1746806092911,0.84351309,102910.0,102900.0,0.14425145]
[1746806093112,0.84351309,102910.0,102900.0,0.11155145]
[1746806093309,0.8162148,102910.0,102900.0,0.11155145]
[1746806093511,1.00351309,102910.0,102900.0,0.11155145]
[1746806094116,0.64271309,102910.0,102900.0,0.11155145]
[1746806094420,1.00351309,102910.0,102900.0,0.06818426]
[1746806095406,0.8162148,102910.0,102900.0,0.06818426]
[1746806095619,1.00351309,102910.0,102900.0,0.06818426]
[1746806097534,1.00351309,102910.0,102900.0,0.00398426]
[1746806099335,1.00351309,102910.0,102900.0,0.03438426]
[1746806100231,1.00351309,102910.0,102900.0,0.00398426]
[1746806100427,0.8162148,102910.0,102900.0,0.00398426]
[1746806100629,1.00351309,102910.0,102900.0,0.03438426]
[1746806100829,1.00351309,102910.0,102900.0,0.06698426]
[1746806101834,0.8162148,102910.0,102900.0,0.11035145]
[1746806102231,0.84351309,102910.0,102900.0,0.11035145]
[1746806103131,1.00351309,102910.0,102900.0,0.11035145]
[1746806104239,0.8162148,102910.0,102900.0,0.11035145]
[1746806104433,1.00351309,102910.0,102900.0,0.11035145]
[1746806106339,0.4247148,102910.0,102900.0,0.47115145]
[1746806106539,0.4247148,102910.0,102900.0,0.11035145]
[1746806106945,0.49841747,102910.0,102900.0,0.11035145]
[1746806107135,0.33841747,102910.0,102900.0,0.11035145]
[1746806107738,0.30761747,102910.0,102900.0,0.94998044]
[1746806107940,0.27631747,102910.0,102900.0,1.11970044]
[1746806108736,0.27631747,102910.0,102900.0,0.93240215]
[1746806108933,0.30771747,102910.0,102900.0,0.93240215]
[1746806109739,0.30771747,102910.0,102900.0,0.73804845]
[1746806109938,0.30771747,102910.0,102900.0,0.93240215]
[1746806110344,0.2340148,102910.0,102900.0,0.93240215]
[1746806111636,0.2340148,102910.0,102900.0,0.73804845]
[1746806111830,0.2340148,102910.0,102900.0,0.93240215]
[1746806113236,0.2340148,102910.0,102900.0,0.20752845]
[1746806113434,0.42131309,102910.0,102900.0,0.37724845]
[1746806113741,0.2964148,102910.0,102900.0,0.37724845]
[1746806113940,0.48371309,102910.0,102900.0,0.37724845]
[1746806114133,0.2964148,102910.0,102900.0,0.37724845]
[1746806114337,0.2026148,102910.0,102900.0,1.11970044]
[1746806114847,0.2026148,102910.0,102900.0,0.93240215]
[1746806115141,0.2334148,102910.0,102900.0,0.93240215]
[1746806116146,0.2026148,102910.0,102900.0,0.93240215]
[1746806116344,0.2026148,102910.0,102900.0,1.11970044]
[1746806116545,0.2026148,102910.0,102900.0,1.28626044]
[1746806116943,0.00828,102910.0,102900.0,1.28626044]
[1746806117147,0.2026148,102910.0,102900.0,2.60998044]
[1746806117446,0.00828,102910.0,102900.0,3.14445473]
[1746806117638,0.17208777,102920.0,102910.0,0.1943348]